lending/lending_fUSD_20250808
["ID","MTS","AMOUNT","RATE_DAILY","PERIOD"]
[378045125,1754683846972,-529.22856801,0.00026067,2]
[378045126,1754683846982,-501.21416759,0.00026067,2]
[378045127,1754683846992,-500.0,0.00026067,2]
[378045128,1754683847003,-175.53,0.00026187,2]
[378045129,1754683847013,-400.0,0.0002628,2]
[378045130,1754683847206,-400.0,0.00026301,2]
[378045131,1754683847217,-400.0,0.00026554,2]
[378045132,1754683847227,-400.0,0.00026575,2]
[378045133,1754683847237,-167.6,0.00026586,2]
[378045134,1754683847246,-1000.0,0.00026602,2]
[378045135,1754683847257,-250.29608712,0.00026615,2]
[378045136,1754683847267,-169.52,0.00026676,2]
[378045137,1754683847276,-1863.78789131,0.00026706,2]
[378045138,1754683847286,-500.0,0.00026805,2]
[378045139,1754683847296,-500.0,0.00026805,2]
[378045140,1754683847305,-500.0,0.00026805,2]
[378045141,1754683847315,-500.0,0.00026805,2]
[378045142,1754683847324,-422.24621173,0.00026805,2]
[378045143,1754683847334,-500.0,0.00026805,2]
[378045144,1754683847345,-500.0,0.00026805,2]
[378045145,1754683847356,-500.0,0.00026805,2]
[378045146,1754683847366,-500.0,0.00026805,2]
[378045147,1754683847378,-500.0,0.00026805,2]
[378045148,1754683847387,-500.0,0.00026805,2]
[378045149,1754683847396,-500.0,0.00026805,2]
[378045150,1754683847405,-500.0,0.00026805,2]
[378045151,1754683847415,-500.0,0.00026805,2]
[378045152,1754683847425,-500.0,0.00026805,2]
[378045153,1754683847435,-500.0,0.00026805,2]
[378045154,1754683847445,-400.0,0.00026806,2]
[378045155,1754683847457,-444.98,0.00026806,2]
[378045156,1754683847470,-485.82,0.00026806,2]
[378045157,1754683847479,-470.8,0.00026806,2]
[378045158,1754683847489,-400.0,0.00026806,2]
[378045159,1754683847498,-400.0,0.00026806,2]
[378045160,1754683847508,-400.0,0.00026806,2]
[378045161,1754683847517,-400.0,0.00026806,2]
[378045162,1754683847526,-419.02,0.00026806,2]
[378045163,1754683847536,-414.97,0.00026806,2]
[378045164,1754683847545,-400.0,0.00026806,2]
[378045165,1754683847554,-488.36,0.00026806,2]
[378045166,1754683847563,-400.0,0.00026806,2]
[378045167,1754683847573,-400.0,0.00026806,2]
[378045168,1754683847582,-400.0,0.00026806,2]
[378045169,1754683847591,-400.0,0.00026806,2]
[378045170,1754683847600,-400.0,0.00026806,2]
[378045171,1754683847609,-400.0,0.00026806,2]
[378045172,1754683847618,-400.0,0.00026806,2]
[378045173,1754683847627,-400.0,0.00026806,2]
[378045174,1754683847636,-400.0,0.00026806,2]
[378045175,1754683847646,-400.0,0.00026806,2]
[378045176,1754683847655,-400.0,0.00026806,2]
[378045177,1754683847665,-400.0,0.00026806,2]
[378045178,1754683847674,-400.0,0.00026806,2]
[378045179,1754683847683,-443.2575413,0.00026806,2]
[378045180,1754683847692,-400.0,0.00026806,2]
[378045181,1754683847701,-400.0,0.00026806,2]
[378045182,1754683847711,-400.0,0.00026806,2]
[378045183,1754683847720,-400.0,0.00026806,2]
[378045184,1754683847729,-400.0,0.00026806,2]
[378045185,1754683847738,-400.0,0.00026806,2]
[378045186,1754683847747,-400.0,0.00026806,2]
[378045187,1754683847756,-400.0,0.00026806,2]
[378045188,1754683847765,-400.0,0.00026806,2]
[378045189,1754683847775,-400.0,0.00026806,2]
[378045190,1754683847784,-400.0,0.00026806,2]
[378045191,1754683847794,-400.0,0.00026806,2]
[378045192,1754683847803,-400.0,0.00026806,2]
[378045193,1754683847812,-452.33,0.00026806,2]
[378045194,1754683847822,-543.0,0.00026806,2]
[378045195,1754683847831,-400.0,0.00026806,2]
[378045196,1754683847840,-400.0,0.00026806,2]
[378045197,1754683847849,-400.0,0.00026806,2]
[378045198,1754683847858,-400.0,0.00026806,2]
[378045199,1754683847867,-400.0,0.00026806,2]
[378045200,1754683847877,-400.0,0.00026806,2]
[378045201,1754683847886,-400.0,0.00026806,2]
[378045202,1754683847896,-400.0,0.00026806,2]
[378045203,1754683847905,-448.81,0.00026806,2]
[378045204,1754683847915,-400.0,0.00026806,2]
[378045205,1754683847927,-400.0,0.00026806,2]
[378045206,1754683847936,-424.55,0.00026806,2]
[378045207,1754683847945,-400.0,0.00026806,2]
[378045208,1754683847954,-400.0,0.00026806,2]
[378045209,1754683847965,-400.0,0.00026806,2]
[378045210,1754683847974,-400.0,0.00026806,2]
[378045211,1754683847983,-400.0,0.00026806,2]
[378045212,1754683847995,-235.53156261,0.00026806,2]
[378045213,1754683848004,-516.36,0.00026806,2]
[378045214,1754683848013,-510.55,0.00026806,2]
[378045215,1754683848023,-400.0,0.00026806,2]
[378045216,1754683848032,-409.01,0.00026806,2]
[378045217,1754683848042,-400.0,0.00026806,2]
[378045218,1754683848051,-400.0,0.00026806,2]
[378045219,1754683848061,-521.23,0.00026806,2]
[378045220,1754683848071,-270.9,0.00026806,2]
[378045221,1754683848081,-400.0,0.00026806,2]
[378045222,1754683848091,-400.0,0.00026806,2]
[378045223,1754683848100,-400.0,0.00026806,2]
[378045224,1754683848109,-400.0,0.00026806,2]
[378045225,1754683848119,-483.73008793,0.00026806,2]
[378045226,1754683848128,-400.0,0.00026806,2]
[378045227,1754683848138,-400.0,0.00026806,2]
[378045228,1754683848147,-400.0,0.00026806,2]
[378045229,1754683848156,-400.0,0.00026806,2]
[378045230,1754683848167,-446.61,0.00026806,2]
[378045231,1754683848176,-378.04869637,0.00026806,2]
[378045232,1754683848185,-400.0,0.00026806,2]
[378045233,1754683848195,-400.0,0.00026806,2]
[378045234,1754683848204,-494.31,0.00026806,2]
[378045235,1754683848214,-400.0,0.00026806,2]
[378045236,1754683848223,-400.0,0.00026806,2]
[378045237,1754683848232,-441.36,0.00026806,2]
[378045238,1754683848242,-400.0,0.00026806,2]
[378045239,1754683848251,-1024.02,0.00026806,2]
[378045240,1754683848260,-400.0,0.00026806,2]
[378045241,1754683848270,-500.0,0.00026806,2]
[378045242,1754683848279,-400.0,0.00026806,2]
[378045243,1754683848289,-400.0,0.00026806,2]
[378045244,1754683848298,-400.0,0.00026806,2]
[378045245,1754683848307,-427.46,0.00026806,2]
[378045246,1754683848316,-400.0,0.00026806,2]
[378045247,1754683848325,-413.86,0.00026806,2]
[378045248,1754683848334,-542.63,0.00026806,2]
[378045249,1754683848344,-400.0,0.00026806,2]
[378045250,1754683848354,-400.0,0.00026806,2]
[378045251,1754683848363,-400.0,0.00026806,2]
[378045252,1754683848373,-441.59,0.00026806,2]
[378045253,1754683848383,-400.0,0.00026806,2]
[378045254,1754683848392,-400.0,0.00026806,2]
[378045255,1754683848401,-400.0,0.00026806,2]
[378045256,1754683848411,-400.0,0.00026806,2]
[378045257,1754683848420,-400.0,0.00026806,2]
[378045258,1754683848430,-400.0,0.00026806,2]
[378045259,1754683848440,-400.0,0.00026806,2]
[378045260,1754683848450,-307.68908399,0.00026806,2]
[378045261,1754683848459,-400.0,0.00026806,2]
[378045262,1754683848470,-405.75190878,0.00026806,2]
[378045263,1754683848479,-400.0,0.00026806,2]
[378045264,1754683848488,-400.0,0.00026806,2]
[378045265,1754683848497,-400.0,0.00026806,2]
[378045266,1754683848507,-504.89,0.00026806,2]
[378045267,1754683848516,-3544.04,0.00026806,2]
[378045268,1754683848526,-400.0,0.00026806,2]
[378045269,1754683848535,-400.0,0.00026806,2]
[378045270,1754683848544,-3923.27,0.00026806,2]
[378045271,1754683848554,-426.59,0.00026806,2]
[378045272,1754683848563,-403.10376179,0.00026806,2]
[378045273,1754683848572,-400.0,0.00026806,2]
[378045274,1754683848582,-173.02786978,0.00026806,2]
[378045275,1754683848591,-400.0,0.00026806,2]
[378045276,1754683848601,-400.0,0.00026806,2]
[378045277,1754683848610,-400.0,0.00026806,2]
[378045278,1754683848620,-400.0,0.00026806,2]
[378045279,1754683848630,-253.63576146,0.00026806,2]
[378045280,1754683848639,-400.0,0.00026806,2]
[378045281,1754683848649,-400.0,0.00026806,2]
[378045282,1754683848658,-400.0,0.00026806,2]
[378045283,1754683848667,-199.85919702,0.00026806,2]
[378045284,1754683848677,-400.0,0.00026806,2]
[378045285,1754683848686,-400.0,0.00026806,2]
[378045286,1754683848695,-400.0,0.00026806,2]
[378045287,1754683848705,-400.0,0.00026806,2]
[378045288,1754683848714,-400.0,0.00026806,2]
[378045289,1754683848724,-400.0,0.00026806,2]
[378045290,1754683848734,-400.0,0.00026806,2]
[378045291,1754683848743,-400.0,0.00026806,2]
[378045292,1754683848752,-400.0,0.00026806,2]
[378045293,1754683848762,-400.0,0.00026806,2]
[378045294,1754683848771,-400.0,0.00026806,2]
[378045295,1754683848780,-400.0,0.00026806,2]
[378045296,1754683848789,-400.0,0.00026806,2]
[378045297,1754683848798,-400.0,0.00026806,2]
[378045298,1754683848808,-400.0,0.00026806,2]
[378045299,1754683848817,-400.0,0.00026806,2]
[378045300,1754683848827,-400.0,0.00026806,2]
[378045301,1754683848836,-400.0,0.00026806,2]
[378045302,1754683848845,-400.0,0.00026806,2]
[378045303,1754683848855,-400.0,0.00026806,2]
[378045304,1754683848864,-470.75307756,0.00026806,2]
[378045305,1754683848874,-400.0,0.00026806,2]
[378045306,1754683848884,-400.0,0.00026806,2]
[378045307,1754683848894,-441.08,0.00026806,2]
[378045308,1754683848903,-400.0,0.00026806,2]
[378045309,1754683848913,-400.0,0.00026806,2]
[378045310,1754683848927,-400.0,0.00026806,2]
[378045311,1754683848936,-337.48,0.00026806,2]
[378045312,1754683848946,-400.0,0.00026806,2]
[378045313,1754683848956,-400.0,0.00026806,2]
[378045314,1754683848966,-400.0,0.00026806,2]
[378045315,1754683848975,-400.0,0.00026806,2]
[378045316,1754683848984,-506.85198069,0.00026806,2]
[378045317,1754683848994,-400.0,0.00026806,2]
[378045318,1754683849004,-492.81,0.00026806,2]
[378045319,1754683849013,-400.0,0.00026806,2]
[378045320,1754683849022,-400.0,0.00026806,2]
[378045321,1754683849032,-407.71,0.00026806,2]
[378045322,1754683849041,-400.0,0.00026806,2]
[378045323,1754683849051,-317.57,0.00026806,2]
[378045324,1754683849060,-400.0,0.00026806,2]
[378045325,1754683849070,-386.14,0.00026806,2]
[378045326,1754683849079,-523.85,0.00026806,2]
[378045327,1754683849088,-400.0,0.00026828,2]
[378045328,1754683849098,-151.0,0.00026839,7]
[378045329,1754683849107,-400.0,0.00026849,2]
[378045330,1754683849116,-150.0,0.00026873,2]
[378045331,1754683849127,-572.58827169,0.0002698,11]
[378045332,1754683849136,-171.92,0.0002698,2]
[378045333,1754683849146,-2706.6,0.00027,7]
[378045334,1754683849155,-150.0,0.00027,2]
[378045335,1754683849164,-287.61899177,0.00027014,2]
[378045336,1754683849174,-219.74,0.0002708,2]
[378045337,1754683849183,-300.81,0.0002708,2]
[378045338,1754683849192,-128.41076018,0.0002708,2]
[378045339,1754683849210,-1888.0,0.00021187,3]
[378045340,1754683849220,-34.42923982,0.0002708,2]
[378045341,1754683849229,-400.0,0.0002708,2]
[378045342,1754683849237,-277.99,0.0002708,2]
[378045343,1754683849246,-345.71908277,0.0002708,2]
[378045344,1754683849258,-54.28091723,0.0002708,2]
[378045345,1754683849267,-151.38,0.0002708,2]
[378045346,1754683849276,-400.0,0.0002708,2]
[378045347,1754683849285,-442.18,0.0002708,2]
[378045348,1754683849294,-400.0,0.0002708,2]
[378045349,1754683849303,-198.75,0.0002708,2]
[378045350,1754683849313,-243.37,0.0002708,2]
[378045351,1754683849322,-417.46,0.0002708,2]
[378045352,1754683849331,-400.0,0.0002708,2]
[378045353,1754683849340,-400.0,0.0002708,2]
[378045354,1754683849350,-400.0,0.0002708,2]
[378045355,1754683849359,-248.65,0.0002708,2]
[378045356,1754683849367,-318.18588274,0.0002708,2]
[378045357,1754683849380,-81.81411726,0.0002708,2]
[378045358,1754683849389,-421.37,0.0002708,2]
[378045359,1754683849398,-161.47,0.0002708,2]
[378045360,1754683849407,-163.98488117,0.0002708,2]
[378045367,1754684353900,175.83,0.00013699,2]
[378045368,1754684435201,-151.0,0.00018968,2]
[378045369,1754684435222,-160.4,0.00018999,2]
[378045370,1754684435245,-300.0,0.00019,2]
[378045371,1754684435268,-250.0,0.00019,2]
[378045372,1754684435288,-300.0,0.00019,2]
[378045373,1754684435310,-2500.0,0.00019,2]
[378045374,1754684435332,-863.32,0.00019,2]
[378045375,1754684435354,-300.0,0.00019044,2]
[378045376,1754684435375,-300.0,0.00019073,2]
[378045377,1754684435397,-151.0,0.00019136,2]
[378045378,1754684435417,-151.0,0.00019235,2]
[378045379,1754684435439,-151.0,0.00019283,2]
[378045381,1754684444486,151.0,0.00018877,2]
[378045382,1754684460938,151.0,0.00018912,2]
[378045383,1754684466983,872.92,0.00019,2]
[378045384,1754684469692,-181.312588,0.00019725,2]
[378045385,1754684469714,-222.356724,0.00019725,2]
[378045386,1754684469738,-1888.0,0.00019735,3]
[378045390,1754684707962,48290.05087376,0.00016,2]
[378045391,1754684711010,7193.2229776,0.000154,2]
[378045392,1754684720650,10044.59248207,9e-05,2]
[378045393,1754684726836,1007.1785653,0.000108,2]
[378045394,1754684737761,31206.73566551,9e-05,2]
[378045397,1754684764013,878.1083162,8e-05,2]
[378045398,1754684875390,18384.12108632,0.00018,2]
[378045418,1754685031953,-255.0,0.00018622,2]
[378045419,1754685031964,-765.0,0.00018799,2]
[378045420,1754685031974,-2390.05177347,0.000188,2]
[378045421,1754685032013,-3427.80053643,0.000188,2]
[378045422,1754685032072,-2072.44626956,0.000188,2]
[378045423,1754685032182,-342.19331682,0.000188,2]
[378045424,1754685032192,-300.0,0.0001885,2]
[378045425,1754685032201,-300.0,0.00018899,2]
[378045426,1754685032210,-300.0,0.00018899,2]
[378045427,1754685032220,-116.87335753,0.000189,2]
[378045550,1754685037785,-183.12664247,0.000189,2]
[378045551,1754685037795,-1913.36677208,0.000189,2]
[378045552,1754685037804,-400.0,0.000189,6]
[378045553,1754685037814,-176.61143072,0.000189,2]
[378045554,1754685037823,-150.72462576,0.000189,2]
[378045555,1754685037837,-183.0581882,0.0001891,2]
[378045556,1754685037847,-500.0,0.00018973,2]
[378045557,1754685037857,-179.46,0.0001899,2]
[378045558,1754685037868,-179.46,0.0001899,2]
[378045559,1754685037879,-500.0,0.00018999,2]
[378045560,1754685037889,-500.0,0.00018999,2]
[378045561,1754685037899,-244.84751825,0.00018999,2]
[378045562,1754685037910,-460.59023768,0.00018999,2]
[378045563,1754685037920,-322.41316637,0.00018999,2]
[378045564,1754685037930,-500.0,0.00018999,2]
[378045565,1754685037940,-500.0,0.00018999,2]
[378045566,1754685037949,-245318.9787208,0.00019,2]
[378045567,1754685037959,-1628.73091692,0.00019,2]
[378045568,1754685037973,-1888.0,0.00019,2]
[378045569,1754685038055,-1476.20447534,0.00019,2]
[378045575,1754685040000,-20350.26851147,0.00019,2]
[378045576,1754685040012,-480986.18202944,0.00019,2]
[378045577,1754685040047,-5606.94344877,0.00019,2]
[378045578,1754685040060,-4784.56333042,0.00019,2]
[378045579,1754685040262,-6927.22639086,0.00019,2]
[378045585,1754685045863,-7732.98780291,0.00019,2]
[378045587,1754685046192,-1295.43203415,0.00019,2]
[378045601,1754685253281,184.32,0.00013699,2]
[378045602,1754685292061,208.16,0.00015068,2]
[378045603,1754685292294,208.16,0.00016709,2]
[378045604,1754685488270,1000.0,0.00017719,2]
[378045605,1754685539912,167.45,0.00017719,2]
[378045606,1754685547648,151.0,0.00017963,2]
[378045607,1754685564322,151.0,0.00017914,2]
[378045608,1754685566293,2751.0,0.00017707,2]
[378045609,1754685581318,151.0,0.00017911,2]
[378045610,1754685598642,151.0,0.00017912,2]
[378045611,1754685616051,151.0,0.00017915,2]
[378045613,1754685645665,17530.44383325,0.0001775,2]
[378045614,1754685645695,6369.55616675,0.0001775,2]
[378045617,1754685744523,698.076537,0.00018003,2]
[378045618,1754685753778,200.0,0.00017746,2]
[378045619,1754685755620,160.0,0.00017746,2]
[378045620,1754685755646,31.71,0.00017746,2]
[378045621,1754685791639,5374.47,0.00017728,2]
[378045622,1754685858934,53419.49,0.00017721,2]
[378045623,1754685876673,1593.09,0.00017721,2]
[378045624,1754685991858,208.63,0.00017726,2]
[378045625,1754686048879,1358.72,0.00017665,2]
[378045626,1754686087186,150.0,0.0001765,2]
[378045635,1754686143405,3532.13,0.0001765,2]
[378045636,1754686176952,150.0,0.00017642,2]
[378045637,1754686181047,1181.81,0.0002111,90]
[378045643,1754686232091,-300.0,0.00018156,2]
[378045644,1754686232102,-191.97,0.00018198,2]
[378045645,1754686232112,-63.45855757,0.00018202,2]
[378045646,1754686232123,-236.54144243,0.00018202,2]
[378045647,1754686232132,-167.6,0.00018262,2]
[378045648,1754686232141,-363.37207477,0.00018344,2]
[378045649,1754686232153,-186.62792523,0.00018344,2]
[378045650,1754686232162,-1115.0,0.00018344,2]
[378045651,1754686232171,-151.0,0.00018345,2]
[378045652,1754686232180,-151.0,0.00018345,2]
[378045653,1754686232190,-151.0,0.00018345,2]
[378045654,1754686232199,-151.0,0.00018345,2]
[378045655,1754686232210,-151.0,0.00018345,2]
[378045656,1754686232219,-200.0,0.00018345,2]
[378045657,1754686232229,-151.0,0.00018345,2]
[378045658,1754686232238,-253.06387961,0.00018345,2]
[378045659,1754686232247,-500.0,0.00018345,2]
[378045660,1754686232256,-600.0,0.00018345,2]
[378045661,1754686232267,-600.0,0.00018345,2]
[378045662,1754686232277,-600.0,0.00018345,2]
[378045663,1754686232286,-600.0,0.00018345,2]
[378045664,1754686232295,-600.0,0.00018345,2]
[378045665,1754686232305,-600.0,0.00018345,2]
[378045666,1754686232315,-500.0,0.00018345,2]
[378045667,1754686232324,-600.0,0.00018345,2]
[378045668,1754686232333,-500.0,0.00018345,2]
[378045669,1754686232342,-600.0,0.00018345,2]
[378045670,1754686232351,-500.0,0.00018345,2]
[378045671,1754686232360,-600.0,0.00018345,2]
[378045672,1754686232369,-500.0,0.00018345,2]
[378045673,1754686232378,-600.0,0.00018345,2]
[378045674,1754686232387,-500.0,0.00018345,2]
[378045675,1754686232396,-600.0,0.00018345,2]
[378045676,1754686232405,-500.0,0.00018345,2]
[378045677,1754686232414,-500.0,0.00018345,2]
[378045678,1754686232423,-500.0,0.00018345,2]
[378045679,1754686232432,-500.0,0.00018345,2]
[378045680,1754686232442,-500.0,0.00018345,2]
[378045681,1754686232451,-500.0,0.00018345,2]
[378045682,1754686232460,-208.16,0.00018349,2]
[378045683,1754686232469,-5358.81,0.00018356,2]
[378045684,1754686232478,-167.45,0.00018383,2]
[378045685,1754686232487,-500.0,0.000184,2]
[378045686,1754686232496,-500.0,0.00018455,2]
[378045687,1754686232506,-154.01,0.00018473,2]
[378045688,1754686232515,-154.01,0.00018485,2]
[378045689,1754686232525,-154.01,0.00018497,2]
[378045691,1754686232534,-154.01,0.00018509,2]
[378045693,1754686232543,-500.0,0.0001851,2]
[378045695,1754686232552,-154.01,0.00018522,2]
[378045696,1754686232561,-154.01,0.00018534,2]
[378045697,1754686232571,-154.01,0.00018546,2]
[378045698,1754686232584,-154.01,0.00018559,2]
[378045700,1754686232593,-517.80348438,0.00018565,2]
[378045702,1754686232602,-154.01,0.00018571,2]
[378045703,1754686232611,-154.01,0.00018583,2]
[378045704,1754686232621,-154.01,0.00018596,2]
[378045705,1754686232631,-154.01,0.00018608,2]
[378045706,1754686232640,-154.01,0.0001862,2]
[378045707,1754686232649,-154.01,0.00018632,2]
[378045708,1754686232660,-1200.0,0.00018633,2]
[378045709,1754686232671,-191.71,0.00018634,2]
[378045712,1754686232680,-154.01,0.00018645,2]
[378045715,1754686232689,-154.01,0.00018657,2]
[378045717,1754686232698,-1000.0,0.00018901,2]
[378045718,1754686232707,-693.14829561,0.00018947,2]
[378045719,1754686232717,-500.0,0.00018973,2]
[378045720,1754686232726,-150.0,0.00018988,2]
[378045721,1754686232735,-151.72107179,0.00018988,2]
[378045722,1754686232745,-150.0,0.00018988,2]
[378045723,1754686232754,-150.0,0.00018988,2]
[378045724,1754686232763,-150.0,0.00018988,2]
[378045725,1754686232774,-150.0,0.00018988,2]
[378045726,1754686232783,-150.83604806,0.00018988,2]
[378045727,1754686232792,-500.0,0.00018988,2]
[378045728,1754686232802,-150.0,0.00018988,2]
[378045729,1754686232811,-150.0,0.00018988,2]
[378045730,1754686232819,-150.0,0.00018988,2]
[378045731,1754686232829,-150.0,0.00018988,2]
[378045732,1754686232838,-150.0,0.00018988,2]
[378045733,1754686232847,-150.0,0.00018988,2]
[378045734,1754686232856,-150.0,0.00018988,2]
[378045735,1754686232865,-150.0,0.00018988,2]
[378045736,1754686232874,-150.0,0.00018988,2]
[378045737,1754686232883,-150.0,0.00018988,2]
[378045738,1754686232892,-150.0,0.00018988,2]
[378045739,1754686232901,-150.0,0.00018988,2]
[378045740,1754686232910,-150.0,0.00018988,2]
[378045741,1754686232919,-7778.94870129,0.00018999,2]
[378045742,1754686232928,-500.0,0.00018999,2]
[378045743,1754686232937,-455.0,0.00018999,2]
[378045744,1754686232946,-500.0,0.00018999,2]
[378045745,1754686232955,-81.79831743,0.00018999,2]
[378045746,1754686232967,-418.20168257,0.00018999,2]
[378045747,1754686232976,-500.0,0.00018999,2]
[378045748,1754686232985,-500.0,0.00018999,2]
[378045749,1754686232996,-458.26741471,0.00018999,2]
[378045750,1754686233010,-41.73258529,0.00018999,2]
[378045751,1754686233019,-500.0,0.00018999,2]
[378045752,1754686233028,-49.61632871,0.00018999,2]
[378045753,1754686233039,-450.38367129,0.00018999,2]
[378045754,1754686233048,-500.0,0.00018999,2]
[378045755,1754686233057,-500.0,0.00018999,2]
[378045756,1754686233066,-36115.37707385,0.00019,2]
[378045757,1754686233075,-892.21,0.00019,2]
[378045758,1754686233084,-223705.53021801,0.00019,2]
[378045759,1754686233093,-167.45,0.00019047,2]
[378045760,1754686233103,-165.48,0.00019076,2]
[378045761,1754686233112,-591.35,0.00019178,2]
[378045762,1754686233121,-174.12,0.00019178,2]
[378045763,1754686233130,-150.0,0.00019262,2]
[378045764,1754686233139,-500.0,0.00019262,2]
[378045765,1754686233148,-150.0,0.00019262,2]
[378045766,1754686233158,-150.0,0.00019262,2]
[378045767,1754686233168,-150.0,0.00019262,2]
[378045768,1754686233178,-191.71,0.00019521,2]
[378045769,1754686233188,-200.0,0.00019536,2]
[378045770,1754686233198,-500.0,0.00019536,2]
[378045771,1754686233208,-200.0,0.00019536,2]
[378045772,1754686233217,-161.92491366,0.00019536,2]
[378045773,1754686233227,-200.0,0.00019536,2]
[378045774,1754686233236,-350.0,0.00019705,2]
[378045775,1754686233245,-167.45,0.00019712,2]
[378045776,1754686233255,-500.0,0.0001981,2]
[378045777,1754686233264,-500.0,0.00019954,2]
[378045778,1754686233273,-300.0,0.00019954,2]
[378045779,1754686233283,-500.0,0.00019954,2]
[378045780,1754686233293,-300.0,0.00019954,2]
[378045781,1754686233303,-300.0,0.00019954,2]
[378045782,1754686233312,-500.0,0.00019954,2]
[378045783,1754686233322,-300.0,0.00019954,2]
[378045784,1754686233332,-1000.0,0.00019954,4]
[378045785,1754686233342,-6478.96026882,0.00019964,2]
[378045786,1754686233352,-208.16,0.0001999,2]
[378045787,1754686233361,-500.0,0.00020084,2]
[378045788,1754686233371,-150.0,0.00020142,2]
[378045789,1754686233380,-132.89530082,0.00020142,2]
[378045790,1754686233395,-17.10469918,0.00020142,2]
[378045791,1754686233404,-200.0,0.00020142,2]
[378045792,1754686233414,-150.0,0.00020142,2]
[378045793,1754686233424,-150.63453419,0.00020142,2]
[378045794,1754686233434,-150.0,0.00020142,2]
[378045795,1754686233443,-150.0,0.00020142,2]
[378045796,1754686233453,-109.87590663,0.00020142,2]
[378045797,1754686233464,-40.12409337,0.00020142,2]
[378045798,1754686233474,-184.32,0.00020187,2]
[378045799,1754686233483,-181.312588,0.00020273,2]
[378045800,1754686233493,-201.25,0.00020354,2]
[378045801,1754686233502,-500.0,0.00020358,2]
[378045802,1754686233511,-167.45,0.00020376,2]
[378045803,1754686233522,-191.71,0.00020408,2]
[378045804,1754686233531,-150.0,0.00020416,2]
[378045805,1754686233541,-150.0,0.00020416,2]
[378045806,1754686233551,-173.03422955,0.00020416,2]
[378045807,1754686233560,-227.88548418,0.00020416,2]
[378045808,1754686233569,-150.0,0.00020416,2]
[378045809,1754686233581,-117.99770596,0.00020632,2]
[378045810,1754686233592,-382.00229404,0.00020632,2]
[378045811,1754686233602,-211.4813511,0.0002069,2]
[378045812,1754686233611,-150.0,0.0002069,2]
[378045813,1754686233790,-500.0,0.00020853,2]
[378045814,1754686233801,-500.0,0.00020906,2]
[378045815,1754686233810,-150.0,0.00020964,2]
[378045816,1754686233820,-338.39,0.0002098,2]
[378045817,1754686233830,-500.0,0.00021068,2]
[378045818,1754686233840,-159.0,0.00021123,4]
[378045819,1754686233850,-271.0,0.0002118,2]
[378045820,1754686233859,-153.87024284,0.00021238,2]
[378045821,1754686233869,-1000.0,0.00021264,2]
[378045822,1754686233882,-191.71,0.00021296,2]
[378045823,1754686233902,-208.16,0.0002163,2]
[378045824,1754686233915,-5000.0,0.00021918,2]
[378045825,1754686233929,-666.0,0.00021918,3]
[378045826,1754686233941,-241.91014258,0.00021918,2]
[378045827,1754686233951,-150.0,0.00021918,2]